Cogmind - Beta 14 @@@ ROGUE MODE // 2024.10.26 @ 04:24:43 Player: Pitt Result: Destroyed by as-91114 with Assembled F-torch Performance ------------- Evolutions (0) 0 Regions Visited (2) 400 Robots Destroyed (26) 130 Value Destroyed (525) 525 Prototype IDs (0) 0 Alien Tech Used (0) 0 Bonus (0) 0 TOTAL SCORE: 1055 Bonus ------- None Cogmind --------- Core Integrity 0/250 Matter 300/300 Energy 48/100 System Corruption 0% Temperature Warm (127) Movement Flying (117) Ox1 Location -10/Mines Parts ------- > --- POWER (1) -------- (None) > --- PROPULSION (2) --- Flight Unit Flight Unit > --- UTILITY (2) ------ Medium Storage Unit Improved Terrain Scanner > --- WEAPON (2) ------- Small Laser > --- INVENTORY (10) --- Ion Engine Light Ion Engine Aluminum Leg Wheel Heat Sink Small Storage Unit Structural Scanner Seismic Detector Mining Laser Peak State ------------ > --- POWER ------------ Light Ion Engine > --- PROPULSION ------- Wheel Wheel > --- UTILITY ---------- Medium Storage Unit Improved Terrain Scanner > --- WEAPON ----------- Medium Laser Assault Rifle > --- INVENTORY -------- Light Ion Engine Wheel Wheel Wheel Small Storage Unit Structural Scanner Seismic Detector EM Pulse Gun Mining Laser Welding Torch [Rating: 10] Favorites ----------- Power Light Ion Engine Engine Light Ion Engine Propulsion Wheel Leg Aluminum Leg Wheel Wheel Flight Unit Flight Unit Utility Medium Storage Unit Device Improved Terrain Scanner Storage Medium Storage Unit Weapon Medium Laser Energy Gun Medium Laser Ballistic Gun Assault Rifle Special Weapon Mining Laser Build | -11 -10 -10 ------- Run | Yrd Mat Min Slots Evolved . | . . . Power . | . . . Propulsion . | . . . Utility . | . . . Weapon . | . . . Parts Attached 25 | 7 5 13 Power 2 | 1 . 1 Engine 2 | 1 . 1 Core . | . . . Reactor . | . . . Propulsion 8 | 2 . 6 Treads . | . . . Leg 1 | . . 1 Wheel 5 | 2 . 3 Hover . | . . . Flight 2 | . . 2 Utility 7 | 2 3 2 Device 5 | 1 2 2 Storage 2 | 1 1 . Processor . | . . . Hackware . | . . . Protection . | . . . Artifact . | . . . Weapon 8 | 2 2 4 Energy Gun 4 | 1 1 2 Energy Cannon . | . . . Ballistic Gun 2 | 1 . 1 Ballistic Cannon . | . . . Launcher . | . . . Special Weapon 2 | . 1 1 Impact Weapon . | . . . Slashing Weapon . | . . . Piercing Weapon . | . . . Special Melee Weapon . | . . . Unidentified Prototypes . | . . . Parts Lost 7 | . 1 6 Power 1 | . . 1 Propulsion 3 | . . 3 Utility . | . . . Weapon 3 | . 1 2 Highest Loss Streak 2 | . 1 2 To Critical Strikes . | . . . Average Slot Usage (%) 98 | . 100 97 Engine 13 | . 14 13 Wheel 27 | . 28 27 Device 14 | . 14 14 Storage 14 | . 14 14 Energy Gun 14 | . 13 14 Ballistic Gun 3 | . 14 1 Special Weapon 8 | . . 11 Peak Build Rating 10 | 7 10 10 Average Rating 8 | 6 8 8 On Entrance 4 | . 7 7 Naked Turns . | . . . Heaviest Build 18 | 13 18 18 Greatest Support 20 | 20 20 20 Greatest Overweight (x) 1 | . . 1 Average Overweight (x) . | . . . Largest Inventory Capacity 10 | 8 10 10 Average Capacity 9 | 7 9 10 Most Carried 10 | 7 10 10 Average Carried 8 | 2 8 9 Final Capacity 10 | 8 10 10 Final Carried 10 | 7 10 9 Class Distribution -------------------- 68% | Scavenger-Mutant 31% | Mutant Dominant Class ---------------- Mutant | -10/Materials Scavenger-Mutant | -10/Mines Resources | -11 -10 -10 ----------- Run | Yrd Mat Min Matter Collected 560 | 315 104 141 Remotely . | . . . Salvage Created 866 | 236 186 444 Parts 45 | 18 9 18 Haulers Intercepted . | . . . Recyclers Shooed . | . . . Parts Field Recycled . | . . . Retrieved Matter . | . . . Parts Self-Destructed . | . . . Prevented . | . . . Kills | -11 -10 -10 ------- Run | Yrd Mat Min Combat Hostiles Destroyed 16 | . 3 13 Guns 16 | . 3 13 Classes Destroyed 7 | 3 4 . Worker 2 | 2 . . Builder 1 | . 1 . Tunneler 5 | 5 . . Recycler 1 | 1 . . Watcher 1 | . 1 . Swarmer 4 | . 1 3 Grunt 12 | . 2 10 Best Kill Streak 5 | 4 2 5 Combat Bots Only 5 | . 2 5 Max Kills in Single Turn 2 | 1 1 2 Gunslinging . | . . . Exploded . | . . . Melee . | . . . Uniques/NPCs Destroyed . | . . . Combat | -11 -10 -10 -------- Run | Yrd Mat Min Hostile Shots Fired 93 | . 28 65 Missed 10 | . 5 5 Damage Taken 900 | . 289 611 Core 255 | . 53 202 Absorbed by Shields . | . . . Core Remaining (%) 100 | 100 . . Volleys Fired 90 | 15 24 51 Largest 2 | 2 2 2 Hottest 100 | 70 70 100 Shots Fired 130 | 30 42 58 Gun 122 | 30 39 53 Cannon . | . . . Launcher . | . . . Special 8 | . 3 5 Kinetic 40 | 15 18 7 Thermal 70 | 15 4 51 Explosive . | . . . Electromagnetic 20 | . 20 . Robot Hit Streak 16 | 7 5 16 Robot Miss Streak 3 | 2 3 3 Penetration Max . | . . . Secondary Targets . | . . . Shots Hit Robots 82 | 20 20 42 Core Hits 39 | 9 7 23 Critical Kills . | . . . Critical Parts Destroyed 1 | . . 1 Critical Strikes 4 | 1 1 2 Burn 2 | 1 . 1 Destroy 1 | . . 1 Corrupt 1 | . 1 . Melee Attacks . | . . . Impact . | . . . Slashing . | . . . Piercing . | . . . Sneak Attacks . | . . . Combat Hostiles . | . . . Follow-up Attacks . | . . . Damage Inflicted 1112 | 254 310 548 Guns 1110 | 254 310 546 Cannons . | . . . Explosions . | . . . Melee . | . . . Ramming 2 | . . 2 Kinetic 313 | 114 111 88 Thermal 598 | 140 . 458 Explosive . | . . . Electromagnetic 199 | . 199 . Impact . | . . . Slashing . | . . . Piercing . | . . . Highest Corruption . | . . . Average Corruption . | . . . Corruption Purged . | . . . Corruption Blocked . | . . . Overload Shots . | . . . Overflow Damage . | . . . Projectiles . | . . . Explosions . | . . . Melee . | . . . Knockbacks . | . . . Impact . | . . . Kinetic . | . . . Secondary . | . . . Self-Inflicted Damage . | . . . Shots . | . . . Rammed . | . . . Targets Rammed 1 | . . 1 Kicked 1 | . . 1 Crushed . | . . . Highest Temperature 356 | 54 159 356 Average Temperature 94 | 18 88 121 Received Heat Transfer 518 | . 168 350 Effects 1 | . . 1 Short Circuit 1 | . . 1 Siege Activations . | . . . Robots Corrupted . | . . . Combat Hostiles . | . . . Parts Fried 1 | . 1 . Impact Corruptions . | . . . Robots Melted . | . . . Combat Hostiles . | . . . Parts Melted 5 | . . 5 Heat Transferred 1865 | 481 . 1384 Parts Sabotaged . | . . . Parts Stolen . | . . . Parts Stripped . | . . . Power Chain Reactions . | . . . Alert | -11 -10 -10 ------- Run | Yrd Mat Min Peak Influence 160 | 40 149 160 Initial 54 | . 26 54 Average 47 | 20 47 52 Maximum Alert Level . | . . . Low Security (%) 100 | 100 100 100 Level 1 . | . . . Level 2 . | . . . Level 3 . | . . . Level 4 . | . . . Level 5 . | . . . High Security . | . . . Max Security . | . . . Squads Dispatched . | . . . Investigation . | . . . Extermination . | . . . Reinforcement . | . . . Assault . | . . . Garrison . | . . . Intercept . | . . . Searches Triggered . | . . . Construction Impeded . | . . . Haulers Reinforced . | . . . Active Scanning Responses . | . . . Cargo Convoy Interrupts . | . . . Stealth | -11 -10 -10 --------- Run | Yrd Mat Min Distress Signals 1 | . 1 . Communications Jammed . | . . . Distress Signals . | . . . Times Spotted 23 | . 7 16 Peak Tracking Total 9 | . 3 9 Tactical Retreats . | . . . Traps | -11 -10 -10 ------- Run | Yrd Mat Min Traps Triggered . | . . . Indirectly . | . . . Trap Hack Attempts . | . . . Triggered . | . . . Disarmed . | . . . Reprogrammed . | . . . Reused . | . . . Traps Extracted . | . . . Installed . | . . . Triggered . | . . . Machines | -11 -10 -10 ---------- Run | Yrd Mat Min Machines Disabled . | . . . Max in Single Turn . | . . . Machines Repaired . | . . . Machines Dismantled . | . . . Machines Sabotaged . | . . . Overloaded Fab Kills . | . . . Hacking | -11 -10 -10 --------- Run | Yrd Mat Min Machines Accessed 2 | . 2 . Terminals 2 | . 2 . Fabricators . | . . . Repair Stations . | . . . Recycling Units . | . . . Scanalyzers . | . . . Garrison Access . | . . . Total Hacks 5 | . 5 . Successful 2 | . 2 . Failed 3 | . 3 . Catastrophic 1 | . 1 . Database Lockouts . | . . . Manual 5 | . 5 . Terminals 5 | . 5 . Fabricators . | . . . Repair Stations . | . . . Recycling Units . | . . . Scanalyzers . | . . . Garrison Access . | . . . Terminal Hacks 1 | . 1 . Terminal Index 1 | . 1 . Fabricator Hacks . | . . . Repair Station Hacks . | . . . Recycling Unit Hacks . | . . . Scanalyzer . | . . . Garrison Access Hacks . | . . . Unauthorized Hacks 1 | . 1 . Terminals 1 | . 1 . Botnet 1 | . 1 . Fabricators . | . . . Repair Stations . | . . . Recycling Units . | . . . Scanalyzers . | . . . Garrison Access . | . . . Data Cores Recovered . | . . . Used . | . . . Hacking Detections 2 | . 2 . Full Trace Events . | . . . Feedback Events . | . . . Feedback Blocked . | . . . Robot Schematics Acquired . | . . . Robots Built . | . . . Authchips . | . . . Time . | . . . Total Robot Build Rating . | . . . Part Schematics Acquired . | . . . Parts Built . | . . . Authchips . | . . . Time . | . . . Total Part Build Rating . | . . . Parts Repaired . | . . . Time . | . . . Parts Recycled . | . . . Recycled Matter . | . . . Retrieved Matter . | . . . Retrieved Components . | . . . Parts Scanalyzed . | . . . Part Schematics Acquired . | . . . Parts Damaged . | . . . Bothacking | -11 -10 -10 ------------ Run | Yrd Mat Min Used RIF Installer . | . . . Robots Hacked . | . . . Non-combat . | . . . Combat . | . . . Robot Hacks Applied . | . . . Relay Couplers Released . | . . . Fabnet Peak Effective % . | . . . Robots Rewired . | . . . Allies Hacked . | . . . Hacks Repelled . | . . . Allies | -11 -10 -10 -------- Run | Yrd Mat Min Total Allies . | . . . Largest Group . | . . . Highest-Rated Group . | . . . Highest-Rated Ally . | . . . Total Orders . | . . . Ally Attacks . | . . . Total Damage . | . . . Kills . | . . . Allies Corrupted . | . . . Allies Melted . | . . . Intel | -11 -10 -10 ------- Run | Yrd Mat Min Robot Analysis Total . | . . . Derelict Logs Recovered . | . . . Drone Launches . | . . . Drone Recoveries . | . . . Exploration | -11 -10 -10 ------------- Run | Yrd Mat Min Turns Passed 1512 | 161 297 1054 Spaces Moved 315 | 124 117 74 Core 2 | 2 . . Treads . | . . . Legs . | . . . Wheels 313 | 122 117 74 Hover . | . . . Flight . | . . . Fastest Speed 50 | 50 80 80 Average Speed 80 | 79 80 83 Slowest Speed 95 | 80 80 95 Overloaded Moves . | . . . Propulsion Burnouts . | . . . Robots Hopped . | . . . Cave-ins Triggered . | . . . Exploration Rate (%) 13 | 5 26 9 Regions Visited 2 Branch Regions 1 Pre-discovered Areas . | . . . Known Exits Taken . | . . . Unknown Exits Taken 2 | 1 1 . Scrap Searched . | . . . Spaces Dug . | . . . Terrain Destroyed 1 | . . 1 Melee . | . . . Projectile 1 | . . 1 AOE . | . . . Terrain Rammed . | . . . Walls Destroyed . | . . . Machines Disabled . | . . . Actions | -11 -10 -10 --------- Run | Yrd Mat Min Total 1421 | 152 275 994 Wait 975 | . 128 847 Move 313 | 123 116 74 Hop . | . . . Pick Up 14 | 7 2 5 Fast Attach 9 | 7 . 2 Attach 3 | . . 3 Detach . | . . . Swap 13 | . 5 8 Drop 3 | . . 3 Fire 90 | 15 24 51 Melee . | . . . Ram . | . . . Kick 1 | . . 1 Crush . | . . . Escape Stasis . | . . . Rewire . | . . . Trap . | . . . Miscellaneous . | . . . Route ------- -11/Scrapyard -10/Materials -10/Mines History --------- Turn | Location | Event 7 | -11/Scrapyard | Discovered new exit (range 16) 162 | -11/Scrapyard | Entered Materials 314 | -10/Materials | Build established: Mutant 451 | -10/Materials | Discovered new exit (range 11) 459 | -10/Materials | Entered Mines 523 | -10/Mines | Excavation squad dispatched 523 | -10/Mines | A large section of the Mines collapsed 753 | -10/Mines | Build established: Scavenger-Mutant 773 | -10/Mines | Excavation squad dispatched 1023 | -10/Mines | Excavation squad dispatched 1273 | -10/Mines | Excavation squad dispatched 1435 | -10/Mines | Core integrity fell below 50% 1478 | -10/Mines | Core integrity fell below 20% 1513 | -10/Mines | Destroyed by as-91114 with Assembled F-torch Last Messages --------------- 01469_ Wheel destroyed. 01469_ G-34 Mercenary suffers critical hit (Burn). 01471_ G-34 Mercenary overheating. 01471_ Ion Engine melted. 01471_ Aluminum Leg melted. 01471_ G-34 Mercenary destroyed. 01478_ Med. Laser broken. 01478_ Overheating: Short circuit. 01481_ R-06 Scavenger collects Sml. Laser. 01487_ Acquired Sml. Laser. 01488_ Acquired 10 matter. 01491_ Acquired Aluminum Leg. 01492_ G-34 Mercenary destroyed. 01493_ Acquired 10 matter. 01496_ G-34 Mercenary destroyed. 01500_ Broken Med. Laser destroyed. 01506_ G-34 Mercenary destroyed. 01508_ Lgt. Ion Engine destroyed. 01508_ Kicked G-34 Mercenary. 01511_ Acquired 10 matter. Map ----- +----------------------------------------------------+ | | | | | | | | | | | | | | | | | | | | | | | | | | | | | | | | | | | | | ??????????#???#????###??###?#?##?##?#?#?#?##?#?#?? | | ??????????#???##????#######??#?#?##??#####???#???? | | ????????????????????###?#?#????#??"##"?####??#??#? | | ?????????????#????#??#?#?####???? ###?#????#???#?? | | ?????????????????######???###?##"#|#??##??#?#####? | | ?????????????????#???###?#?#?### !%######?####??#? | | ???????? ?????????###?######## = |####???##??##?? | | ??????????????#????####%g@!%%a| ;########??#???? | | ???????????????#??#####g####### ##### ####?##?? | | ???????? ?????#???#?###%#?###?### #### # ##?#### | | ????????#???????????###%#??####### # ## ###### | | ?????????????????#???##=###?#?###### # #""" ## | | ???????????????#??#???#[#??####???##### """ ## | | ?????????????????##???#=#???####????### """ ## | | ???????????????##??####*##?##? ? ## #####? | | ????????????????????#?#$###?# ?#?##??## ##????? | | ???????????##??##???#?#%####? ?##?# ??#######????? | | ????????????????#?????# ? ? ?#?#?# #??######????? | | ?????????????#??? ???? ###?##?##?# ?###??#?????? | | ??????????????????????######?#???# ? ? ?????? | | ??????????????????#??????#?### ???? ?? ???????? | | ??????????????????????????#??? ? ? ????????? | | ????????????????????????#???##???#?? ??????????? | | ????????????????????????????????#????????????????? | | ?????????????????????????????????????????????????? | | ???????????????????????????????#?????????????????? | | ?????????????????????????????????????????????????? | | ?????????????????????????????????????????????????? | | ?????????????????????????????????????????????????? | | ?????????????????????????????????????????????????? | | ?????????????????????????????????????????????????? | | ?????????????????????????????????????????????????? | +----------------------------------------------------+ Best States ------------- Heat Dissipation 25 Energy Generation 10 Energy Capacity 125 Matter Stores 300 Matter Capacity 300 Sight Range 16 Terrain Scan Range 16 Terrain Scan Density 10 Evasion (%) 44 Item Schematics ----------------- None Robot Schematics ------------------ None Fabricated ------------ Nothing Alien Tech Used ----------------- None Achievements -------------- None Challenges ------------ None Game ------ Seed SpliceMiniLauncher Manual? 0 Play Time 00:08:45 Cumulative 218.2 hours Start 2024.10.26 @ 04:16:14 End 2024.10.26 @ 04:24:43 Sessions 1 Manual Loads 0 Difficulty Rogue Special Mode None Game No. 339 Rogue 339 Adventurer 0 Explorer 0 Win Type - Total 0 Types 0/0/0/0/0/0/0/0/0 Lore% 38 Gallery% 56 Achievement% 41 Wizard Run 0 Options --------- Layout 0 ASCII 0 Keyboard 0 Movement Mouse Keybinds 0 Fullscreen 1 Font 18/SmallcapsGlow Map View 76x50 Zoom Use 0% Tactical HUD 1 Map Filters NONE Filters NONE Steam 1 RUN: 86ded2fc-b348-4091-8438-9c1e28ab21bb